fUSD/lending_fUSD_20250510
["ID","MTS","AMOUNT","RATE_DAILY","PERIOD"]
[360611617,1746901861558,-400.0,0.00019999,2]
[360611618,1746901861567,-400.0,0.00019999,2]
[360611619,1746901861577,-400.0,0.00019999,2]
[360611620,1746901861587,-400.0,0.00019999,2]
[360611621,1746901861598,-400.0,0.00019999,2]
[360611622,1746901861607,-400.0,0.00019999,2]
[360611623,1746901861616,-400.0,0.00019999,2]
[360611624,1746901861626,-400.0,0.00019999,2]
[360611625,1746901861636,-400.0,0.00019999,2]
[360611626,1746901861645,-400.0,0.00019999,2]
[360611627,1746901861654,-548.91,0.00019999,2]
[360611628,1746901861663,-256.91766411,0.0002,2]
[360611629,1746901861673,-467525.10211112,0.0002,2]
[360611630,1746901861906,-24720.0,0.0002,2]
[360611631,1746901861927,-151.0,0.00019728,2]
[360611632,1746901861938,-7657.20327541,0.0002,2]
[360611633,1746901862019,-4235.25740305,0.0002,2]
[360611634,1746901862031,-4310.75538872,0.0002,2]
[360611635,1746901862053,-1142.0,0.00019704,2]
[360611636,1746901862067,-599281.48563694,0.0002,2]
[360611637,1746901862146,-752.63853883,0.00019169,2]
[360611638,1746901862159,-40.34590657,0.00019169,2]
[360611639,1746901862168,-302.36,0.00019998,2]
[360611640,1746901862178,-9543.64287219,0.0002,2]
[360611641,1746901862228,-510.59331866,0.0002,2]
[360611642,1746901862239,-923.86998,0.0002,2]
[360611643,1746901862251,-583.83,0.0002,2]
[360611644,1746901862262,-1164.00608359,0.0002,2]
[360611645,1746901862274,-387.31414544,0.0002,2]
[360611646,1746901862285,-916.83806527,0.0002,2]
[360611647,1746902079639,541.55,0.00013699,2]
[360611649,1746902383890,1474.58,0.00025635,120]
[360611650,1746902384136,1474.58,0.00027966,120]
[360611651,1746902462054,1644.49,0.00016681,2]
[360611654,1746902582992,796.83,0.00030137,120]
[360611655,1746902600983,500.0,0.00030137,120]
[360611656,1746902616131,796.828,0.00017006,2]
[360611657,1746902689008,-684.12,0.00020575,30]
[360611658,1746902689053,-3674.54022511,0.00027,60]
[360611659,1746902689118,-6229.37495016,0.00030137,120]
[360611660,1746902689144,-1646.78893529,0.00030137,120]
[360611661,1746902689179,-150.132,0.00030137,30]
[360611662,1746902689205,-206.94113164,0.00030137,30]
[360611663,1746902689243,-250.0,0.000308,30]
[360611664,1746902689270,-2044.45544974,0.00031,30]
[360611665,1746902689298,-900.0,0.00031,32]
[360611666,1746902689324,-157.59705658,0.00031644,120]
[360611667,1746902689351,-500.0,0.00031648,120]
[360611668,1746902689376,-312.06412331,0.0003167,40]
[360611669,1746902689403,-1333.0,0.00031945,120]
[360611670,1746902689427,-312.19813486,0.00032,120]
[360611671,1746902689452,-153.51331945,0.00032,30]
[360611672,1746902689478,-900.0,0.00032,33]
[360611673,1746902689504,-165.42631661,0.00032795,30]
[360611674,1746902689531,-282.41,0.0003287,120]
[360611675,1746902689554,-624.41,0.00032876,120]
[360611676,1746902689577,-624.41,0.00032876,120]
[360611677,1746902689601,-624.41,0.00032876,120]
[360611678,1746902689625,-624.41,0.00032876,120]
[360611679,1746902689649,-624.41,0.00032876,120]
[360611680,1746902689674,-624.41,0.00032876,120]
[360611681,1746902689698,-624.41,0.00032876,120]
[360611682,1746902689721,-624.41,0.00032876,120]
[360611683,1746902689745,-624.41,0.00032876,120]
[360611684,1746902689768,-624.41,0.00032876,120]
[360611685,1746902689791,-624.41,0.00032876,120]
[360611686,1746902689814,-624.41,0.00032876,120]
[360611687,1746902689837,-624.41,0.00032876,120]
[360611688,1746902689860,-624.41,0.00032876,120]
[360611689,1746902689884,-624.41,0.00032876,120]
[360611690,1746902689907,-624.41,0.00032876,120]
[360611691,1746902689931,-624.41,0.00032876,120]
[360611692,1746902689954,-624.41,0.00032876,120]
[360611693,1746902689977,-624.41,0.00032876,120]
[360611694,1746902690001,-624.41,0.00032876,120]
[360611695,1746902690024,-624.41,0.00032876,120]
[360611696,1746902690051,-624.41,0.00032876,120]
[360611697,1746902690075,-624.41,0.00032876,120]
[360611698,1746902690098,-624.5628759,0.00032876,120]
[360611699,1746902690127,-397.80101665,0.000329,30]
[360611700,1746902690154,-433.74411024,0.00033,120]
[360611701,1746902690178,-750.52391706,0.00033,120]
[360611702,1746902690202,-900.0,0.00033,34]
[360611703,1746902690227,-165.42631661,0.00033151,30]
[360611704,1746902690252,-500.0,0.0003316,120]
[360611705,1746902690277,-155.12985283,0.00033226,120]
[360611706,1746902690305,-900.0,0.00034,35]
[360611707,1746902690330,-684.12,0.0003427,30]
[360611708,1746902690356,-500.0,0.00034672,120]
[360611709,1746902690381,-155.00649264,0.00034887,120]
[360611710,1746902690406,-495.92782186,0.00035,30]
[360611711,1746902690429,-3288.00994848,0.00035,30]
[360611712,1746902690464,-900.0,0.00035,36]
[360611713,1746902690492,-1240.0,0.00035,60]
[360611714,1746902690517,-393.17932491,0.00035,30]
[360611715,1746902690544,-1000.0,0.00035616,30]
[360611716,1746902690572,-2249.44296182,0.00036,60]
[360611717,1746902690597,-900.0,0.00036,37]
[360611718,1746902690622,-500.0,0.00036183,120]
[360611719,1746902690648,-155.00032463,0.00036632,120]
[360611720,1746902690674,-900.0,0.00037,38]
[360611721,1746902690702,-993.46,0.00037,120]
[360611722,1746902690729,-500.0,0.00037695,120]
[360611723,1746902690756,-520.88488866,0.00038,30]
[360611724,1746902690782,-7485.0332964,0.00038,120]
[360611725,1746902690807,-900.0,0.00038,39]
[360611726,1746902690833,-3000.0,0.00038355,60]
[360611727,1746902690859,-295.63207515,0.0003836,120]
[360611728,1746902690886,-295.63207515,0.0003836,120]
[360611729,1746902690911,-295.63207515,0.0003836,120]
[360611730,1746902690935,-295.63207515,0.0003836,120]
[360611731,1746902690961,-295.63207515,0.0003836,120]
[360611732,1746902690990,-295.63207515,0.0003836,120]
[360611733,1746902691015,-295.63207515,0.0003836,120]
[360611734,1746902691040,-295.63207515,0.0003836,120]
[360611735,1746902691064,-295.63207515,0.0003836,120]
[360611736,1746902691088,-295.63207515,0.0003836,120]
[360611737,1746902691114,-295.63207515,0.0003836,120]
[360611738,1746902691138,-295.63207515,0.0003836,120]
[360611739,1746902691163,-295.63207515,0.0003836,120]
[360611740,1746902691188,-295.63207515,0.0003836,120]
[360611741,1746902691214,-295.63207515,0.0003836,120]
[360611742,1746902691238,-295.63207515,0.0003836,120]
[360611743,1746902691265,-295.63207515,0.0003836,120]
[360611744,1746902691291,-295.63207515,0.0003836,120]
[360611745,1746902691561,-295.63207515,0.0003836,120]
[360611746,1746902691589,-295.63,0.0003836,120]
[360611747,1746902691615,-689.80817534,0.0003836,120]
[360611748,1746902691639,-689.80817534,0.0003836,120]
[360611749,1746902691664,-689.80817534,0.0003836,120]
[360611750,1746902691691,-689.80817534,0.0003836,120]
[360611751,1746902691714,-689.80817534,0.0003836,120]
[360611752,1746902691738,-689.80817534,0.0003836,120]
[360611753,1746902691762,-689.80817534,0.0003836,120]
[360611754,1746902691785,-689.80817534,0.0003836,120]
[360611755,1746902691816,-689.80817534,0.0003836,120]
[360611756,1746902691845,-689.80817534,0.0003836,120]
[360611757,1746902691871,-689.80817534,0.0003836,120]
[360611758,1746902691909,-689.80817534,0.0003836,120]
[360611759,1746902691936,-689.80817534,0.0003836,120]
[360611760,1746902691961,-689.80817534,0.0003836,120]
[360611761,1746902691987,-689.80817534,0.0003836,120]
[360611762,1746902692012,-689.80817534,0.0003836,120]
[360611763,1746902692038,-689.80817534,0.0003836,120]
[360611764,1746902692063,-689.80817534,0.0003836,120]
[360611765,1746902692088,-689.80817534,0.0003836,120]
[360611766,1746902692115,-689.8,0.0003836,120]
[360611767,1746902692141,-636.19778577,0.0003836,120]
[360611768,1746902692167,-636.19778577,0.0003836,120]
[360611769,1746902692194,-636.19778577,0.0003836,120]
[360611770,1746902692221,-636.19778577,0.0003836,120]
[360611771,1746902692248,-636.19778577,0.0003836,120]
[360611772,1746902692274,-636.19778577,0.0003836,120]
[360611773,1746902692301,-636.19778577,0.0003836,120]
[360611774,1746902692330,-636.19778577,0.0003836,120]
[360611775,1746902692358,-636.19778577,0.0003836,120]
[360611776,1746902692384,-636.19778577,0.0003836,120]
[360611777,1746902692410,-636.19778577,0.0003836,120]
[360611778,1746902692439,-636.19778577,0.0003836,120]
[360611779,1746902692468,-636.19778577,0.0003836,120]
[360611780,1746902692494,-636.19778577,0.0003836,120]
[360611781,1746902692521,-636.19778577,0.0003836,120]
[360611782,1746902692547,-636.19778577,0.0003836,120]
[360611783,1746902692574,-636.19778577,0.0003836,120]
[360611784,1746902692600,-636.19778577,0.0003836,120]
[360611785,1746902692627,-636.19778577,0.0003836,120]
[360611786,1746902692658,-636.19,0.0003836,120]
[360611787,1746902692684,-1484.46150014,0.0003836,120]
[360611788,1746902692710,-1484.46150014,0.0003836,120]
[360611789,1746902692736,-1484.46150014,0.0003836,120]
[360611790,1746902692764,-1484.46150014,0.0003836,120]
[360611791,1746902692790,-1484.46150014,0.0003836,120]
[360611792,1746902692818,-1484.46150014,0.0003836,120]
[360611793,1746902692843,-1484.46150014,0.0003836,120]
[360611794,1746902692871,-1484.46150014,0.0003836,120]
[360611795,1746902692897,-1484.46150014,0.0003836,120]
[360611796,1746902692923,-1484.46150014,0.0003836,120]
[360611797,1746902692949,-1484.46150014,0.0003836,120]
[360611798,1746902692978,-1484.46150014,0.0003836,120]
[360611799,1746902693006,-1484.46150014,0.0003836,120]
[360611800,1746902693034,-1484.46150014,0.0003836,120]
[360611801,1746902693062,-1484.46150014,0.0003836,120]
[360611802,1746902693089,-1484.46150014,0.0003836,120]
[360611803,1746902693117,-1484.46150014,0.0003836,120]
[360611804,1746902693144,-1484.46150014,0.0003836,120]
[360611805,1746902693175,-1484.46150014,0.0003836,120]
[360611806,1746902693202,-1484.46,0.0003836,120]
[360611807,1746902693229,-299.76475984,0.0003836,120]
[360611808,1746902693255,-299.76475984,0.0003836,120]
[360611809,1746902693282,-299.76475984,0.0003836,120]
[360611810,1746902693311,-299.76475984,0.0003836,120]
[360611811,1746902693337,-299.76475984,0.0003836,120]
[360611812,1746902693364,-299.76475984,0.0003836,120]
[360611813,1746902693392,-299.76475984,0.0003836,120]
[360611814,1746902693418,-299.76475984,0.0003836,120]
[360611815,1746902693444,-299.76475984,0.0003836,120]
[360611816,1746902693470,-299.76475984,0.0003836,120]
[360611817,1746902693496,-299.76475984,0.0003836,120]
[360611818,1746902693522,-299.76475984,0.0003836,120]
[360611819,1746902693547,-299.76475984,0.0003836,120]
[360611820,1746902693572,-299.76475984,0.0003836,120]
[360611821,1746902693596,-299.76475984,0.0003836,120]
[360611822,1746902693622,-299.76475984,0.0003836,120]
[360611823,1746902693646,-299.76475984,0.0003836,120]
[360611824,1746902693671,-299.76475984,0.0003836,120]
[360611825,1746902693695,-299.76475984,0.0003836,120]
[360611826,1746902693719,-299.76,0.0003836,120]
[360611827,1746902693743,-699.4511063,0.0003836,120]
[360611828,1746902693768,-699.4511063,0.0003836,120]
[360611829,1746902693793,-699.4511063,0.0003836,120]
[360611830,1746902693825,-699.4511063,0.0003836,120]
[360611831,1746902693854,-699.4511063,0.0003836,120]
[360611832,1746902693883,-699.4511063,0.0003836,120]
[360611833,1746902693909,-699.4511063,0.0003836,120]
[360611834,1746902693935,-699.4511063,0.0003836,120]
[360611835,1746902693962,-699.4511063,0.0003836,120]
[360611836,1746902693988,-699.4511063,0.0003836,120]
[360611837,1746902694013,-699.4511063,0.0003836,120]
[360611838,1746902694039,-699.4511063,0.0003836,120]
[360611839,1746902694064,-699.4511063,0.0003836,120]
[360611840,1746902694090,-699.4511063,0.0003836,120]
[360611841,1746902694115,-699.4511063,0.0003836,120]
[360611842,1746902694148,-699.4511063,0.0003836,120]
[360611843,1746902694175,-699.4511063,0.0003836,120]
[360611844,1746902694200,-699.4511063,0.0003836,120]
[360611845,1746902694226,-699.4511063,0.0003836,120]
[360611846,1746902694252,-699.4511063,0.0003836,120]
[360611847,1746902694277,-2083.48511705,0.000384,33]
[360611848,1746902694304,-155.00001623,0.00038463,120]
[360611849,1746902694545,-298.26089,0.000385,120]
[360611850,1746902694571,-411.30434,0.000385,120]
[360611851,1746902694596,-3000.0,0.00038903,60]
[360611852,1746902694623,-277.04946965,0.00039,120]
[360611853,1746902694647,-608.04662755,0.00039,120]
[360611854,1746902694671,-347.72224488,0.00039,120]
[360611855,1746902694693,-2000.0,0.00039,120]
[360611856,1746902694718,-900.0,0.00039,40]
[360611857,1746902694742,-724.18028544,0.00039178,30]
[360611858,1746902694766,-507.694659,0.00039207,120]
[360611859,1746902694791,-3000.0,0.00039451,60]
[360611860,1746902694817,-900.0,0.00039451,60]
[360611861,1746902694842,-411.30434,0.000395,120]
[360611862,1746902694866,-160.0,0.000395,30]
[360611863,1746902694892,-152.0,0.00039945,30]
[360611864,1746902694917,-3000.0,0.00039999,60]
[360611865,1746902694942,-900.0,0.00039999,60]
[360611866,1746902694969,-160.0,0.0004,33]
[360611867,1746902694994,-477.12749073,0.0004,30]
[360611868,1746902695018,-569.49036806,0.0004,120]
[360611869,1746902695044,-346.09974099,0.0004,30]
[360611870,1746902695073,-198.99048371,0.0004,30]
[360611871,1746902695097,-806.63859232,0.0004,30]
[360611872,1746902695123,-3002.8982037,0.0004,30]
[360611873,1746902695147,-500.0,0.0004,30]
[360611874,1746902695171,-900.0,0.0004,41]
[360611875,1746902695197,-155.00000081,0.00040386,120]
[360611876,1746902695222,-411.30434,0.000405,120]
[360611877,1746902695246,-160.0,0.000405,35]
[360611878,1746902695271,-3000.0,0.00040547,60]
[360611879,1746902695300,-900.0,0.00040547,60]
[360611880,1746902695325,-265.38665928,0.000408,60]
[360611881,1746902695351,-1237.25223,0.00040888,30]
[360611882,1746902695376,-500.0,0.00040973,120]
[360611883,1746902695402,-160.0,0.00041,37]
[360611884,1746902695425,-507.29251703,0.00041,120]
[360611885,1746902695450,-900.0,0.00041,42]
[360611886,1746902695474,-4174.0,0.00041,117]
[360611887,1746902695498,-889.0,0.00041,30]
[360611888,1746902695523,-500.0,0.00041073,120]
[360611889,1746902695549,-1237.25223,0.00041088,30]
[360611890,1746902695572,-3000.0,0.00041095,60]
[360611891,1746902695599,-900.0,0.00041095,60]
[360611892,1746902695627,-700.0,0.00041095,120]
[360611893,1746902695653,-700.0,0.00041095,120]
[360611894,1746902695677,-700.0,0.00041095,120]
[360611895,1746902695712,-700.0,0.00041095,120]
[360611896,1746902695738,-700.0,0.00041095,120]
[360611897,1746902695764,-700.0,0.00041095,120]
[360611898,1746902695790,-700.0,0.00041095,120]
[360611899,1746902695815,-700.0,0.00041095,120]
[360611900,1746902695841,-700.0,0.00041095,120]
[360611901,1746902695866,-700.0,0.00041095,120]
[360611902,1746902695895,-700.0,0.00041095,120]
[360611903,1746902695922,-700.0,0.00041095,120]
[360611904,1746902695947,-245.88100123,0.00041095,120]
[360611905,1746902695972,-587.85,0.00041095,120]
[360611906,1746902695999,-587.85,0.00041095,120]
[360611907,1746902696024,-587.85,0.00041095,120]
[360611908,1746902696051,-587.85,0.00041095,120]
[360611909,1746902696076,-587.85,0.00041095,120]
[360611910,1746902696102,-587.85,0.00041095,120]
[360611911,1746902696128,-587.85,0.00041095,120]
[360611912,1746902696155,-587.85,0.00041095,120]
[360611913,1746902696180,-587.85,0.00041095,120]
[360611914,1746902696206,-587.85,0.00041095,120]
[360611915,1746902696231,-587.85,0.00041095,120]
[360611916,1746902696256,-587.85,0.00041095,120]
[360611917,1746902696281,-587.85,0.00041095,120]
[360611918,1746902696309,-587.85,0.00041095,120]
[360611919,1746902696335,-587.85,0.00041095,120]
[360611920,1746902696362,-587.85,0.00041095,120]
[360611921,1746902696390,-587.85,0.00041095,120]
[360611922,1746902696417,-587.85,0.00041095,120]
[360611923,1746902696442,-587.85,0.00041095,120]
[360611924,1746902696468,-587.85,0.00041095,120]
[360611925,1746902696493,-587.85,0.00041095,120]
[360611926,1746902696519,-587.85,0.00041095,120]
[360611927,1746902696545,-587.85,0.00041095,120]
[360611928,1746902696570,-587.96027548,0.00041095,120]
[360611929,1746902696596,-500.0,0.00041096,30]
[360611930,1746902696621,-500.0,0.00041096,30]
[360611931,1746902696647,-500.0,0.00041096,30]
[360611932,1746902696672,-500.0,0.00041096,30]
[360611933,1746902696696,-500.0,0.00041096,30]
[360611934,1746902696720,-500.0,0.00041096,30]
[360611935,1746902696749,-500.0,0.00041096,30]
[360611936,1746902696787,-500.0,0.00041096,30]
[360611937,1746902696820,-500.0,0.00041096,30]
[360611938,1746902696845,-500.0,0.00041096,30]
[360611939,1746902696870,-500.0,0.00041096,30]
[360611940,1746902696898,-500.0,0.00041096,30]
[360611941,1746902696924,-500.0,0.00041096,30]
[360611942,1746902696948,-500.0,0.00041096,30]
[360611943,1746902696973,-500.0,0.00041096,30]
[360611944,1746902696998,-500.0,0.00041096,30]
[360611945,1746902697022,-500.0,0.00041096,30]
[360611946,1746902697048,-500.0,0.00041096,30]
[360611947,1746902697074,-500.0,0.00041096,30]
[360611948,1746902697100,-500.0,0.00041096,30]
[360611949,1746902697127,-500.0,0.00041096,30]
[360611950,1746902697152,-500.0,0.00041096,30]
[360611951,1746902697176,-500.0,0.00041096,30]
[360611952,1746902697202,-500.0,0.00041096,30]
[360611953,1746902697404,-500.0,0.00041096,30]
[360611954,1746902697431,-500.0,0.00041096,30]
[360611955,1746902697461,-500.0,0.00041096,30]
[360611956,1746902697487,-500.0,0.00041096,30]
[360611957,1746902697514,-500.0,0.00041096,30]
[360611958,1746902697540,-500.0,0.00041096,30]
[360611959,1746902697566,-500.0,0.00041096,30]
[360611960,1746902697592,-500.0,0.00041096,30]
[360611961,1746902697617,-500.0,0.00041096,30]
[360611962,1746902697643,-500.0,0.00041096,30]
[360611963,1746902697668,-500.0,0.00041096,30]
[360611964,1746902697695,-500.0,0.00041096,30]
[360611965,1746902697720,-587.0,0.00041096,30]
[360611966,1746902697745,-3105.42,0.00041096,120]
[360611967,1746902697770,-193.37459198,0.00041096,31]
[360611968,1746902697796,-804.33061996,0.00041173,120]
[360611969,1746902697823,-1237.25223,0.00041288,30]
[360611970,1746902697851,-1237.25223,0.00041488,30]
[360611971,1746902697876,-411.30434,0.000415,120]
[360611972,1746902697903,-160.0,0.000415,39]
[360611973,1746902697929,-1500.0,0.000415,120]
[360611974,1746902697955,-3000.0,0.00041643,60]
[360611975,1746902697981,-900.0,0.00041643,60]
[360611976,1746902698008,-1237.25223,0.00041688,30]
[360611977,1746902698033,-150.0,0.00041707,120]
[360611978,1746902698059,-150.0,0.00041792,120]
[360611979,1746902698084,-1237.25223,0.00041888,30]
[360611980,1746902698109,-348.94,0.00041912,120]
[360611981,1746902698135,-150.0,0.00041918,30]
[360611982,1746902698161,-150.0,0.00041918,30]
[360611983,1746902698187,-154.5111698,0.00041918,30]
[360611984,1746902698211,-183.84259872,0.00041918,30]
[360611985,1746902698236,-150.0,0.00041918,30]
[360611986,1746902698260,-150.0,0.00041918,30]
[360611987,1746902698284,-150.0,0.00041918,30]
[360611988,1746902698314,-150.0,0.00041918,30]
[360611989,1746902698339,-150.0,0.00041918,30]
[360611990,1746902698363,-150.0,0.00041918,30]
[360611991,1746902698389,-150.0,0.00041918,30]
[360611992,1746902698414,-150.0,0.00041918,30]
[360611993,1746902698439,-150.0,0.00041918,30]
[360611994,1746902698466,-150.0,0.00041958,120]
[360611995,1746902698492,-154.5111698,0.00041965,30]
[360611996,1746902698516,-183.84259872,0.00041965,30]
[360611997,1746902698541,-875.0,0.0004197,120]
[360611998,1746902698565,-682.0,0.0004197,120]
[360611999,1746902698589,-364.0,0.0004197,120]
[360612000,1746902698614,-875.0,0.0004197,120]
[360612001,1746902698639,-682.0,0.0004197,120]
[360612002,1746902698663,-364.0,0.0004197,120]
[360612003,1746902698688,-1577.0,0.0004197,120]
[360612004,1746902698713,-1577.0,0.0004197,120]
[360612005,1746902698738,-875.0,0.0004198,120]
[360612006,1746902698763,-682.0,0.0004198,120]
[360612007,1746902698788,-364.0,0.0004198,120]
[360612008,1746902698812,-875.0,0.0004198,120]
[360612009,1746902698837,-682.0,0.0004198,120]
[360612010,1746902698861,-364.0,0.0004198,120]
[360612011,1746902698885,-875.0,0.0004198,120]
[360612012,1746902698908,-682.0,0.0004198,120]
[360612013,1746902698933,-883.54,0.0004198,120]
[360612014,1746902698957,-364.0,0.0004198,120]
[360612015,1746902698980,-685.05,0.0004198,120]
[360612016,1746902699004,-371.8,0.0004198,120]
[360612017,1746902699028,-1577.0,0.0004198,120]
[360612018,1746902699052,-1577.0,0.0004198,120]
[360612019,1746902699075,-1577.0,0.0004198,120]
[360612020,1746902699100,-1581.13,0.0004198,120]
[360612021,1746902699125,-150.0,0.00041988,30]
[360612022,1746902699150,-875.0,0.0004199,120]
[360612023,1746902699174,-682.0,0.0004199,120]
[360612024,1746902699198,-364.0,0.0004199,120]
[360612025,1746902699223,-875.0,0.0004199,120]
[360612026,1746902699247,-682.0,0.0004199,120]
[360612027,1746902699271,-364.0,0.0004199,120]
[360612028,1746902699299,-875.0,0.0004199,120]
[360612029,1746902699329,-682.0,0.0004199,120]
[360612030,1746902699354,-875.0,0.0004199,120]
[360612031,1746902699380,-364.0,0.0004199,120]
[360612032,1746902699405,-682.0,0.0004199,120]
[360612033,1746902699429,-364.0,0.0004199,120]
[360612034,1746902699455,-1577.0,0.0004199,120]
[360612035,1746902699481,-1577.0,0.0004199,120]
[360612036,1746902699505,-1577.0,0.0004199,120]
[360612037,1746902699531,-1577.0,0.0004199,120]
[360612038,1746902699556,-250.07,0.0004199,120]
[360612039,1746902699583,-803.31,0.00041991,30]
[360612040,1746902699608,-457.06,0.00041991,30]
[360612041,1746902699636,-150.0,0.00041995,30]
[360612042,1746902699662,-160.0,0.00042,41]
[360612043,1746902699688,-256.8565244,0.00042,30]
[360612044,1746902699718,-900.0,0.00042,43]
[360612045,1746902699744,-367.94234403,0.00042,120]
[360612046,1746902699769,-472.42454539,0.00042,120]
[360612047,1746902699794,-276.28757787,0.00042,30]
[360612048,1746902699820,-1000.0,0.00042,120]
[360612049,1746902699845,-3295.0,0.00042,120]
[360612050,1746902699875,-1623.0,0.00042,120]
[360612051,1746902699901,-20523.88476985,0.00042,60]
[360612052,1746902699927,-154.5111698,0.00042012,30]
[360612053,1746902699954,-183.84259872,0.00042012,30]
[360612054,1746902699980,-150.0,0.00042034,30]
[360612055,1746902700007,-154.5111698,0.00042059,30]
[360612056,1746902700034,-183.84259872,0.00042059,30]
[360612057,1746902700219,-150.0,0.00042059,30]
[360612058,1746902700274,-150.0,0.00042061,120]
[360612059,1746902700303,-150.0,0.00042073,30]
[360612060,1746902700327,-150.0,0.00042084,30]
[360612061,1746902700353,-1237.25223,0.00042088,30]
[360612062,1746902700380,-150.0,0.00042088,120]
[360612063,1746902700405,-150.0,0.00042097,30]
[360612064,1746902700431,-154.5111698,0.00042106,30]
[360612065,1746902700457,-183.84259872,0.00042106,30]
[360612066,1746902700482,-315.54713822,0.00042121,120]
[360612067,1746902700507,-150.0,0.00042129,30]
[360612068,1746902700532,-278.050113,0.00042136,120]
[360612069,1746902700557,-2000.0,0.00042136,120]
[360612070,1746902700581,-313.401186,0.00042136,120]
[360612071,1746902700606,-251.779315,0.00042136,120]
[360612072,1746902700633,-150.0,0.0004215,30]
[360612073,1746902700657,-150.0,0.0004215,30]
[360612074,1746902700683,-154.5111698,0.00042153,30]
[360612075,1746902700708,-183.84259872,0.00042153,30]
[360612076,1746902700732,-3000.0,0.00042191,60]
[360612077,1746902700757,-154.5111698,0.000422,30]
[360612078,1746902700796,-183.84259872,0.000422,30]
[360612079,1746902700821,-150.0,0.000422,30]
[360612080,1746902700849,-150.0,0.000422,120]
[360612081,1746902700879,-150.0,0.00042228,30]
[360612082,1746902700905,-154.5111698,0.00042247,30]
[360612083,1746902700930,-183.84259872,0.00042247,30]
[360612084,1746902700956,-150.0,0.0004225,30]
[360612085,1746902700983,-150.0,0.00042267,30]
[360612086,1746902701008,-150.0,0.0004227,30]
[360612087,1746902701035,-150.0,0.00042276,30]
[360612088,1746902701062,-1237.25223,0.00042288,30]
[360612089,1746902701086,-154.5111698,0.00042294,30]
[360612090,1746902701112,-183.84259872,0.00042294,30]
[360612091,1746902701137,-150.0,0.00042306,30]
[360612092,1746902701163,-154.5111698,0.00042341,30]
[360612093,1746902701189,-183.84259872,0.00042341,30]
[360612094,1746902701213,-150.0,0.00042341,30]
[360612095,1746902701238,-150.0,0.00042341,30]
[360612096,1746902701263,-150.0,0.00042383,30]
[360612097,1746902701288,-150.0,0.00042383,30]
[360612098,1746902701317,-154.5111698,0.00042388,30]
[360612099,1746902701342,-183.84259872,0.00042388,30]
[360612100,1746902701368,-695.513,0.000424,64]
[360612101,1746902701395,-150.0,0.00042411,30]
[360612102,1746902701420,-150.0,0.00042417,30]
[360612103,1746902701446,-154.5111698,0.00042435,30]
[360612104,1746902701473,-183.84259872,0.00042435,30]
[360612105,1746902701499,-150.0,0.0004244,120]
[360612106,1746902701525,-150.0,0.00042455,30]
[360612107,1746902701550,-150.0,0.00042461,30]
[360612108,1746902701576,-154.5111698,0.00042482,30]
[360612109,1746902701602,-183.84259872,0.00042482,30]
[360612110,1746902701630,-150.0,0.00042482,30]
[360612111,1746902701656,-1237.25223,0.00042488,30]
[360612112,1746902701682,-150.0,0.000425,30]
[360612113,1746902701708,-150.0,0.000425,30]
[360612114,1746902701734,-411.30434,0.000425,120]
[360612115,1746902701760,-160.0,0.000425,44]
[360612116,1746902701786,-341.59462319,0.000425,120]
[360612117,1746902701812,-154.5111698,0.00042529,30]
[360612118,1746902701837,-183.84259872,0.00042529,30]
[360612119,1746902701864,-150.0,0.00042539,30]